fUSD/lending_fUSD_20240629
["ID","MTS","AMOUNT","RATE_DAILY","PERIOD"]
[330669206,1719697929105,-4580.63,0.00014684,3]
[330669207,1719697929115,-500.0,0.00014684,3]
[330669208,1719697929125,-824.84,0.00014684,3]
[330669209,1719697929135,-4545.37,0.00014684,3]
[330669210,1719697929145,-824.25,0.00014684,3]
[330669211,1719697929156,-1343.98,0.00014684,3]
[330669212,1719697929166,-4134.76,0.00014684,3]
[330669213,1719697929176,-1024.35,0.00014684,3]
[330669214,1719697929186,-1876.11,0.00014684,3]
[330669215,1719697929196,-1236.5,0.00014684,3]
[330669216,1719697929206,-649.92,0.00014684,3]
[330669217,1719697929218,-3079.7,0.00014684,3]
[330669218,1719697929228,-3087.82,0.00014684,3]
[330669219,1719697929239,-1991.15,0.00014684,3]
[330669220,1719697929249,-500.0,0.00014684,3]
[330669221,1719697929259,-527.58,0.00014684,3]
[330669222,1719697929270,-3418.59,0.00014684,3]
[330669223,1719697929280,-936.25,0.00014684,3]
[330669224,1719697929290,-1350.58,0.00014684,3]
[330669225,1719697929300,-1069.06,0.00014684,3]
[330669226,1719697929310,-4296.17,0.00014684,3]
[330669227,1719697929319,-8026.11,0.00014684,3]
[330669228,1719697929329,-3276.15,0.00014684,3]
[330669229,1719697929339,-1170.29,0.00014684,3]
[330669230,1719697929349,-500.0,0.00014684,3]
[330669231,1719697929358,-5643.12,0.00014684,3]
[330669232,1719697929368,-893.86,0.00014684,3]
[330669233,1719697929378,-1176.78,0.00014684,3]
[330669234,1719697929389,-518.31,0.00014684,3]
[330669235,1719697929401,-500.0,0.00014684,3]
[330669236,1719697929411,-1185.67,0.00014684,3]
[330669237,1719697929420,-547.81,0.00014684,3]
[330669238,1719697929431,-500.0,0.00014684,3]
[330669239,1719697929440,-2603.39,0.00014684,3]
[330669240,1719697929451,-500.0,0.00014684,3]
[330669241,1719697929461,-1561.26,0.00014684,3]
[330669242,1719697929475,-2326.63,0.00014684,3]
[330669243,1719697929485,-500.0,0.00014684,3]
[330669244,1719697929495,-3268.24,0.00014684,3]
[330669245,1719697929505,-500.0,0.00014684,3]
[330669246,1719697929515,-500.0,0.00014684,3]
[330669247,1719697929524,-608.94,0.00014684,3]
[330669248,1719697929535,-500.0,0.00014684,3]
[330669249,1719697929544,-3892.68,0.00014684,3]
[330669250,1719697929554,-1365.85,0.00014684,3]
[330669251,1719697929564,-1072.42,0.00014684,3]
[330669252,1719697929574,-619.13,0.00014684,3]
[330669253,1719697929585,-651.51,0.00014684,3]
[330669254,1719697929595,-1596.85,0.00014684,3]
[330669255,1719697929604,-500.0,0.00014684,3]
[330669256,1719697929614,-1324.36,0.00014684,3]
[330669257,1719697929623,-2416.08,0.00014684,3]
[330669258,1719697929632,-500.0,0.00014684,3]
[330669259,1719697929642,-1610.36,0.00014684,3]
[330669260,1719697929652,-1094.74,0.00014684,3]
[330669261,1719697929661,-5315.74,0.00014684,3]
[330669262,1719697929671,-500.0,0.00014684,3]
[330669263,1719697929681,-2379.59,0.00014684,3]
[330669264,1719697929691,-1796.48,0.00014684,3]
[330669265,1719697929700,-966.95,0.00014684,3]
[330669266,1719697929710,-500.0,0.00014684,3]
[330669267,1719697929719,-2662.28,0.00014684,3]
[330669268,1719697929730,-831.59,0.00014684,3]
[330669269,1719697929740,-427.99967298,0.00014684,3]
[330669270,1719697929750,-630.2,0.00014684,3]
[330669271,1719697929760,-6591.7,0.00014684,3]
[330669272,1719697929769,-914.37,0.00014684,3]
[330669273,1719697929779,-529.01,0.00014684,3]
[330669274,1719697929789,-500.0,0.00014684,3]
[330669275,1719697929799,-500.0,0.00014684,3]
[330669276,1719697929808,-1402.23,0.00014684,3]
[330669277,1719697929819,-1196.92,0.00014684,3]
[330669278,1719697929828,-500.0,0.00014684,3]
[330669279,1719697929838,-1448.17,0.00014684,3]
[330669280,1719697929848,-1411.69,0.00014684,3]
[330669281,1719697929858,-2109.02,0.00014684,3]
[330669282,1719697929868,-2625.47,0.00014684,3]
[330669283,1719697929878,-500.0,0.00014684,3]
[330669284,1719697929887,-890.02,0.00014684,3]
[330669285,1719697929898,-2903.57,0.00014684,3]
[330669286,1719697929907,-4050.51,0.00014684,3]
[330669287,1719697929917,-679.62,0.00014684,3]
[330669288,1719697929927,-509.27031398,0.00014684,3]
[330669289,1719697929936,-2762.0,0.00014684,3]
[330669290,1719697929946,-500.0,0.00014684,3]
[330669291,1719697929956,-1721.06,0.00014684,3]
[330669292,1719697929966,-2217.0,0.00014684,3]
[330669293,1719697929975,-677.84,0.00014684,3]
[330669294,1719697929985,-3787.36,0.00014684,3]
[330669295,1719697929994,-1414.56,0.00014684,3]
[330669296,1719697930004,-1050.13,0.00014684,3]
[330669297,1719697930013,-2169.01,0.00014684,3]
[330669298,1719697930023,-858.84,0.00014684,3]
[330669299,1719697930033,-500.0,0.00014684,3]
[330669300,1719697930043,-2110.08,0.00014684,3]
[330669301,1719697930053,-2715.14,0.00014684,3]
[330669302,1719697930062,-862.21,0.00014684,3]
[330669303,1719697930072,-1167.19,0.00014684,3]
[330669304,1719697930082,-500.0,0.00014684,3]
[330669305,1719697930091,-2443.62,0.00014684,3]
[330669306,1719697930101,-1971.4,0.00014684,3]
[330669307,1719697930110,-2046.76,0.00014684,3]
[330669308,1719697930119,-944.41,0.00014684,3]
[330669309,1719697930129,-557.42,0.00014684,3]
[330669310,1719697930139,-1082.52,0.00014684,3]
[330669311,1719697930150,-3188.54,0.00014684,3]
[330669312,1719697930160,-500.0,0.00014684,3]
[330669313,1719697930169,-538.92,0.00014684,3]
[330669314,1719697930179,-500.0,0.00014684,3]
[330669315,1719697930189,-1164.17,0.00014684,3]
[330669316,1719697930199,-6017.33,0.00014684,3]
[330669317,1719697930209,-3460.61,0.00014684,3]
[330669318,1719697930220,-500.0,0.00014684,3]
[330669319,1719697930230,-702.28,0.00014684,3]
[330669320,1719697930240,-6371.13,0.00014684,3]
[330669321,1719697930251,-1495.82,0.00014684,3]
[330669322,1719697930261,-1232.85,0.00014684,3]
[330669323,1719697930271,-1005.1,0.00014684,3]
[330669324,1719697930281,-545.13,0.00014684,3]
[330669325,1719697930291,-736.29,0.00014684,3]
[330669326,1719697930301,-996.78,0.00014684,3]
[330669327,1719697930310,-3151.93,0.00014684,3]
[330669328,1719697930319,-179.97604362,0.00014694,2]
[330669329,1719697930330,-1131.57698668,0.00014694,2]
[330669330,1719697930340,-150.0,0.000147,2]
[330669331,1719697930350,-150.0,0.000147,2]
[330669332,1719697930359,-150.0,0.000147,2]
[330669333,1719697930368,-14953.2948686,0.00014754,2]
[330669334,1719697930378,-2438.96933179,0.00014755,2]
[330669335,1719697930390,-16740.69557941,0.00014755,2]
[330669336,1719697930404,-171.82,0.00014769,2]
[330669337,1719697930413,-2074.03,0.00014794,3]
[330669338,1719697930423,-6680.53,0.00014794,3]
[330669339,1719697930437,-3955.67,0.00014794,3]
[330669340,1719697930447,-2829.49,0.00014794,3]
[330669341,1719697930457,-2444.54,0.00014794,3]
[330669342,1719697930467,-1698.62,0.00014794,3]
[330669343,1719697930478,-1375.34,0.00014794,3]
[330669344,1719697930488,-3508.71,0.00014794,3]
[330669345,1719697930498,-3766.12,0.00014794,3]
[330669346,1719697930508,-4127.7,0.00014794,3]
[330669347,1719697930517,-2752.9,0.00014794,3]
[330669348,1719697930528,-3856.66,0.00014794,3]
[330669349,1719697930539,-2718.08,0.00014794,3]
[330669350,1719697930548,-4618.86,0.00014794,3]
[330669351,1719697930558,-8596.57,0.00014794,3]
[330669352,1719697930568,-9388.9,0.00014794,3]
[330669353,1719697930578,-2782.53,0.00014794,3]
[330669354,1719697930587,-3679.01,0.00014794,3]
[330669355,1719697930597,-10798.79,0.00014794,3]
[330669356,1719697930606,-1708.01,0.00014794,3]
[330669357,1719697930616,-693.37,0.00014794,3]
[330669358,1719697930626,-500.0,0.00014794,3]
[330669359,1719697930803,-2836.27,0.00014794,3]
[330669360,1719697930813,-876.04,0.00014794,3]
[330669361,1719697930823,-520.9,0.00014794,3]
[330669362,1719697930832,-525.4,0.00014794,3]
[330669363,1719697930842,-500.0,0.00014794,3]
[330669364,1719697930851,-500.0,0.00014794,3]
[330669365,1719697930861,-2888.38,0.00014794,3]
[330669366,1719697930871,-521.63719532,0.00014794,3]
[330669367,1719697930881,-799.65,0.00014794,3]
[330669368,1719697930892,-1213.94,0.00014794,3]
[330669369,1719697930906,-500.0,0.00014794,3]
[330669370,1719697930915,-500.0,0.00014794,3]
[330669371,1719697930925,-913.57,0.00014794,3]
[330669372,1719697930936,-500.0,0.00014794,3]
[330669373,1719697930946,-500.0,0.00014794,3]
[330669374,1719697930959,-521.95,0.00014794,3]
[330669375,1719697930968,-500.0,0.00014794,3]
[330669376,1719697930979,-1326.28,0.00014794,3]
[330669377,1719697930988,-992.84,0.00014794,3]
[330669378,1719697930998,-712.38,0.00014794,3]
[330669379,1719697931008,-1192.62,0.00014794,3]
[330669380,1719697931018,-685.54,0.00014794,3]
[330669381,1719697931029,-500.0,0.00014794,3]
[330669382,1719697931039,-1171.75,0.00014794,3]
[330669383,1719697931049,-913.12,0.00014794,3]
[330669384,1719697931059,-500.0,0.00014794,3]
[330669385,1719697931068,-500.0,0.00014794,3]
[330669386,1719697931079,-1113.91,0.00014794,3]
[330669387,1719697931088,-500.0,0.00014794,3]
[330669388,1719697931099,-514.5,0.00014794,3]
[330669389,1719697931109,-500.0,0.00014794,3]
[330669390,1719697931119,-500.0,0.00014794,3]
[330669391,1719697931128,-500.0,0.00014794,3]
[330669392,1719697931138,-577.51,0.00014794,3]
[330669393,1719697931152,-218.94840995,0.00014794,3]
[330669394,1719697931162,-710.19,0.00014794,3]
[330669395,1719697931172,-2797.19,0.00014794,3]
[330669396,1719697931182,-500.0,0.00014794,3]
[330669397,1719697931191,-526.63,0.00014794,3]
[330669398,1719697931200,-500.0,0.00014794,3]
[330669399,1719697931211,-500.0,0.00014794,3]
[330669400,1719697931221,-745.32,0.00014794,3]
[330669401,1719697931231,-535.82,0.00014794,3]
[330669402,1719697931240,-618.16,0.00014794,3]
[330669403,1719697931251,-520.19,0.00014794,3]
[330669404,1719697931262,-526.68,0.00014794,3]
[330669405,1719697931271,-500.0,0.00014794,3]
[330669406,1719697931281,-845.79,0.00014794,3]
[330669407,1719697931291,-558.47,0.00014794,3]
[330669408,1719697931301,-590.44,0.00014794,3]
[330669409,1719697931312,-500.0,0.00014794,3]
[330669410,1719697931322,-500.0,0.00014794,3]
[330669411,1719697931332,-1057.71,0.00014794,3]
[330669412,1719697931342,-870.06,0.00014794,3]
[330669413,1719697931352,-500.0,0.00014794,3]
[330669414,1719697931362,-1030.74,0.00014794,3]
[330669415,1719697931372,-588.45,0.00014794,3]
[330669416,1719697931382,-500.0,0.00014794,3]
[330669417,1719697931394,-513.85,0.00014794,3]
[330669418,1719697931404,-2288.97,0.00014794,3]
[330669419,1719697931414,-500.0,0.00014794,3]
[330669420,1719697931423,-836.96,0.00014794,3]
[330669421,1719697931434,-1133.19,0.00014794,3]
[330669422,1719697931444,-500.0,0.00014794,3]
[330669423,1719697931454,-500.0,0.00014794,3]
[330669424,1719697931464,-500.0,0.00014794,3]
[330669425,1719697931477,-565.54,0.00014794,3]
[330669426,1719697931486,-500.0,0.00014794,3]
[330669427,1719697931496,-571.48,0.00014794,3]
[330669428,1719697931506,-1079.16,0.00014794,3]
[330669429,1719697931516,-2913.86,0.00014794,3]
[330669430,1719697931526,-636.55,0.00014794,3]
[330669431,1719697931536,-460.71699911,0.00014794,3]
[330669432,1719697931545,-727.69,0.00014794,3]
[330669433,1719697931555,-862.68,0.00014794,3]
[330669434,1719697931564,-917.7,0.00014794,3]
[330669435,1719697931574,-601.18,0.00014794,3]
[330669436,1719697931584,-500.0,0.00014794,3]
[330669437,1719697931593,-3115.39,0.00014794,3]
[330669438,1719697931603,-500.0,0.00014794,3]
[330669439,1719697931613,-500.0,0.00014794,3]
[330669440,1719697931622,-500.0,0.00014794,3]
[330669441,1719697931632,-854.03,0.00014794,3]
[330669442,1719697931642,-1402.94,0.00014794,3]
[330669443,1719697931651,-500.0,0.00014794,3]
[330669444,1719697931660,-1805.2,0.00014794,3]
[330669445,1719697931670,-951.34,0.00014794,3]
[330669446,1719697931680,-735.2,0.00014794,3]
[330669447,1719697931689,-506.75,0.00014794,3]
[330669448,1719697931700,-525.86,0.00014794,3]
[330669449,1719697931710,-500.0,0.00014794,3]
[330669450,1719697931719,-1963.77,0.00014794,3]
[330669451,1719697931729,-615.08,0.00014794,3]
[330669452,1719697931739,-561.52,0.00014794,3]
[330669453,1719697931748,-1012.0,0.00014794,3]
[330669454,1719697931758,-500.0,0.00014794,3]
[330669455,1719697931768,-1036.72,0.00014794,3]
[330669456,1719697931779,-500.0,0.00014794,3]
[330669457,1719697931789,-770.04,0.00014794,3]
[330669458,1719697931799,-948.83,0.00014794,3]
[330669459,1719697931808,-500.0,0.00014794,3]
[330669460,1719697931818,-500.0,0.00014794,3]
[330669461,1719697931827,-810.82,0.00014794,3]
[330669462,1719697931837,-500.0,0.00014794,3]
[330669463,1719697931846,-1251.58,0.00014794,3]
[330669464,1719697931856,-551.6,0.00014794,3]
[330669465,1719697931865,-1029.44,0.00014794,3]
[330669466,1719697931875,-1033.08,0.00014794,3]
[330669467,1719697931884,-615.75,0.00014794,3]
[330669468,1719697931894,-800.76,0.00014794,3]
[330669469,1719697931904,-500.0,0.00014794,3]
[330669470,1719697931914,-500.0,0.00014794,3]
[330669471,1719697931923,-500.0,0.00014794,3]
[330669472,1719697931932,-1191.78,0.00014794,3]
[330669473,1719697931942,-500.0,0.00014794,3]
[330669474,1719697931951,-1070.15,0.00014794,3]
[330669475,1719697931961,-500.0,0.00014794,3]
[330669476,1719697931970,-1330.56,0.00014794,3]
[330669477,1719697931980,-644.5642658,0.00014794,3]
[330669478,1719697931990,-615.95967789,0.00014794,3]
[330669479,1719697931999,-500.0,0.00014794,3]
[330669480,1719697932010,-1210.18,0.00014794,3]
[330669481,1719697932020,-652.67,0.00014794,3]
[330669482,1719697932030,-500.0,0.00014794,3]
[330669483,1719697932039,-593.77,0.00014794,3]
[330669484,1719697932049,-528.49,0.00014794,3]
[330669485,1719697932059,-567.39,0.00014794,3]
[330669486,1719697932068,-1328.61,0.00014794,3]
[330669487,1719697932078,-1523.82,0.00014794,3]
[330669488,1719697932088,-812.86,0.00014794,3]
[330669489,1719697932098,-571.80411095,0.00014794,3]
[330669490,1719697932108,-708.61,0.00014794,3]
[330669491,1719697932117,-1932.72,0.00014794,3]
[330669492,1719697932126,-557.64,0.00014794,3]
[330669493,1719697932136,-734.19,0.00014794,3]
[330669494,1719697932145,-1643.79,0.00014794,3]
[330669495,1719697932155,-1505.88,0.00014794,3]
[330669496,1719697932164,-664.71,0.00014794,3]
[330669497,1719697932173,-993.46,0.00014794,3]
[330669498,1719697932183,-1870.08,0.00014794,3]
[330669499,1719697932192,-833.32,0.00014794,3]
[330669500,1719697932201,-958.0,0.00014794,3]
[330669501,1719697932212,-2689.06,0.00014794,3]
[330669502,1719697932222,-500.0,0.00014794,3]
[330669503,1719697932231,-521.34,0.00014794,3]
[330669504,1719697932240,-577.62,0.00014794,3]
[330669505,1719697932250,-524.0,0.00014794,3]
[330669506,1719697932260,-500.0,0.00014794,3]
[330669507,1719697932270,-539.93,0.00014794,3]
[330669508,1719697932279,-1281.46,0.00014794,3]
[330669509,1719697932288,-707.54,0.00014794,3]
[330669510,1719697932298,-1446.63,0.00014794,3]
[330669511,1719697932307,-658.65,0.00014794,3]
[330669512,1719697932317,-528.37,0.00014794,3]
[330669513,1719697932326,-882.5,0.00014794,3]
[330669514,1719697932336,-1105.01,0.00014794,3]
[330669515,1719697932345,-1668.36,0.00014794,3]
[330669516,1719697932354,-603.2,0.00014794,3]
[330669517,1719697932363,-192.50635104,0.00014794,3]
[330669518,1719697932373,-998.81,0.00014794,3]
[330669519,1719697932385,-744.78,0.00014794,3]
[330669520,1719697932396,-500.0,0.00014794,3]
[330669521,1719697932406,-514.21,0.00014794,3]
[330669522,1719697932415,-1641.41,0.00014794,3]
[330669523,1719697932426,-1284.1,0.00014794,3]
[330669524,1719697932436,-967.66,0.00014794,3]
[330669525,1719697932445,-1605.96,0.00014794,3]
[330669526,1719697932455,-945.01,0.00014794,3]
[330669527,1719697932466,-1885.59,0.00014794,3]
[330669528,1719697932477,-500.0,0.00014794,3]
[330669529,1719697932486,-500.0,0.00014794,3]
[330669530,1719697932496,-1263.05,0.00014794,3]
[330669531,1719697932506,-1428.54,0.00014794,3]
[330669532,1719697932515,-1697.34,0.00014794,3]
[330669533,1719697932525,-500.0,0.00014794,3]
[330669534,1719697932535,-1007.82,0.00014794,3]
[330669535,1719697932546,-764.82,0.00014794,3]
[330669536,1719697932556,-500.0,0.00014794,3]
[330669537,1719697932567,-803.08,0.00014794,3]
[330669538,1719697932577,-1297.68,0.00014794,3]
[330669539,1719697932586,-1256.4,0.00014794,3]
[330669540,1719697932596,-500.0,0.00014794,3]
[330669541,1719697932607,-1063.17,0.00014794,3]
[330669542,1719697932616,-1953.67,0.00014794,3]
[330669543,1719697932625,-1317.15,0.00014794,3]
[330669544,1719697932635,-905.93,0.00014794,3]
[330669545,1719697932646,-2152.85,0.00014794,3]
[330669546,1719697932656,-770.65,0.00014794,3]
[330669547,1719697932665,-500.0,0.00014794,3]
[330669548,1719697932675,-532.41,0.00014794,3]
[330669549,1719697932684,-2409.49,0.00014794,3]
[330669550,1719697932693,-500.0,0.00014794,3]
[330669551,1719697932703,-500.0,0.00014794,3]
[330669552,1719697932712,-1020.3,0.00014794,3]
[330669553,1719697932722,-500.0,0.00014794,3]
[330669554,1719697932732,-500.0,0.00014794,3]
[330669555,1719697932741,-1043.43,0.00014794,3]
[330669556,1719697932751,-500.0,0.00014794,3]
[330669557,1719697932760,-500.0,0.00014794,3]
[330669558,1719697932769,-500.0,0.00014794,3]
[330669559,1719697932779,-1653.0,0.00014794,3]
[330669560,1719697932787,-500.0,0.00014794,3]
[330669561,1719697932797,-547.14801196,0.00014794,3]
[330669562,1719697932806,-881.29,0.00014794,3]
[330669563,1719697932815,-1135.91,0.00014794,3]
[330669564,1719697932824,-518.14,0.00014794,3]
[330669565,1719697932833,-500.0,0.00014794,3]
[330669566,1719697932843,-827.18,0.00014794,3]
[330669567,1719697932853,-500.0,0.00014794,3]
[330669568,1719697932862,-1104.85,0.00014794,3]
[330669569,1719697932872,-413.53133546,0.00014794,3]
[330669570,1719697932881,-500.0,0.00014794,3]
[330669571,1719697932890,-1977.24,0.00014794,3]
[330669572,1719697932901,-1395.85,0.00014794,3]
[330669573,1719697932910,-500.0,0.00014794,3]
[330669574,1719697932919,-2002.8,0.00014794,3]
[330669575,1719697932929,-500.0,0.00014794,3]
[330669576,1719697932938,-1107.12,0.00014794,3]
[330669577,1719697932947,-578.86,0.00014794,3]
[330669578,1719697933319,-1357.05,0.00014794,3]
[330669579,1719697933334,-1145.37,0.00014794,3]
[330669580,1719697933345,-612.88,0.00014794,3]
[330669581,1719697933355,-1325.74,0.00014794,3]
[330669582,1719697933365,-531.3,0.00014794,3]
[330669583,1719697933375,-500.0,0.00014794,3]
[330669584,1719697933389,-1583.18,0.00014794,3]
[330669585,1719697933408,-1903.53,0.00014794,3]
[330669586,1719697933417,-492.11596524,0.00014794,3]
[330669587,1719697933427,-974.68,0.00014794,3]
[330669588,1719697933438,-1173.45,0.00014794,3]
[330669589,1719697933447,-655.58,0.00014794,3]
[330669590,1719697933457,-1071.66,0.00014794,3]
[330669591,1719697933467,-1289.06,0.00014794,3]
[330669592,1719697933476,-1588.5,0.00014794,3]
[330669593,1719697933486,-405.61069197,0.00014794,3]
[330669594,1719697933496,-500.0,0.00014794,3]
[330669595,1719697933506,-698.01,0.00014794,3]
[330669596,1719697933516,-500.0,0.00014794,3]
[330669597,1719697933526,-721.94,0.00014794,3]
[330669598,1719697933536,-1731.8,0.00014794,3]
[330669599,1719697933546,-1201.53,0.00014794,3]
[330669600,1719697933555,-1285.08,0.00014794,3]
[330669601,1719697933564,-500.0,0.00014794,3]
[330669602,1719697933574,-500.0,0.00014794,3]
[330669603,1719697933583,-1686.09,0.00014794,3]
[330669604,1719697933593,-500.0,0.00014794,3]
[330669605,1719697933602,-500.0,0.00014794,3]
[330669606,1719697933612,-883.33,0.00014794,3]
[330669607,1719697933621,-1850.97,0.00014794,3]
[330669608,1719697933631,-45646.3,0.00014794,3]
[330669609,1719697933640,-1153.77,0.00014794,3]
[330669610,1719697933651,-740.63,0.00014794,3]
[330669611,1719697933662,-500.0,0.00014794,3]
[330669612,1719697933675,-1824.49,0.00014794,3]
[330669613,1719697933685,-500.0,0.00014794,3]
[330669614,1719697933695,-952.13,0.00014794,3]
[330669615,1719697933704,-1348.05,0.00014794,3]
[330669616,1719697933715,-1236.2,0.00014794,3]
[330669617,1719697933724,-1015.54,0.00014794,3]
[330669618,1719697933734,-3244.88,0.00014794,3]
[330669619,1719697933744,-1365.55,0.00014794,3]
[330669620,1719697933754,-703.01,0.00014794,3]
[330669621,1719697933765,-500.0,0.00014794,3]
[330669622,1719697933774,-500.0,0.00014794,3]
[330669623,1719697933783,-933.24,0.00014794,3]
[330669624,1719697933793,-5853.89,0.00014794,3]
[330669625,1719697933802,-708.25,0.00014794,2]
[330669626,1719697933812,-1074.21,0.00014794,3]
[330669627,1719697933822,-585.7,0.00014794,3]
[330669628,1719697933831,-211.36,0.00014794,3]
[330669629,1719697933840,-1013.7,0.00014794,3]
[330669630,1719697933850,-500.0,0.00014794,3]
[330669631,1719697933859,-775.91,0.00014794,3]
[330669632,1719697933869,-1851.76,0.00014794,3]
[330669633,1719697933878,-645.47,0.00014794,3]
[330669634,1719697933888,-2091.76,0.00014794,3]
[330669635,1719697933898,-500.0,0.00014794,3]
[330669636,1719697933908,-1482.82,0.00014794,3]
[330669637,1719697933917,-549.88,0.00014794,3]
[330669638,1719697933927,-1075.72,0.00014794,3]
[330669639,1719697933937,-500.0,0.00014794,3]
[330669640,1719697933946,-500.0,0.00014794,3]
[330669641,1719697933956,-500.0,0.00014794,3]
[330669642,1719697933965,-500.0,0.00014794,3]
[330669643,1719697933974,-1439.6,0.00014794,3]
[330669644,1719697933984,-352.71721218,0.00014794,3]
[330669645,1719697933994,-966.29,0.00014794,3]
[330669646,1719697934003,-1322.17,0.00014794,3]
[330669647,1719697934013,-1867.92,0.00014794,3]
[330669648,1719697934022,-1676.42,0.00014794,3]
[330669649,1719697934032,-860.95,0.00014794,3]
[330669650,1719697934042,-500.0,0.00014794,3]
[330669651,1719697934051,-742.11,0.00014794,3]
[330669652,1719697934061,-500.0,0.00014794,3]
[330669653,1719697934071,-625.47,0.00014794,3]
[330669654,1719697934081,-684.56,0.00014794,3]
[330669655,1719697934091,-500.0,0.00014794,3]
[330669656,1719697934100,-1574.73,0.00014794,3]
[330669657,1719697934110,-733.26,0.00014794,3]
[330669658,1719697934119,-500.0,0.00014794,3]
[330669659,1719697934129,-338.43184124,0.00014794,3]
[330669660,1719697934138,-837.81,0.00014794,3]
[330669661,1719697934147,-5685.01,0.00014794,3]
[330669662,1719697934156,-500.0,0.00014794,3]
[330669663,1719697934166,-500.0,0.00014794,3]
[330669664,1719697934176,-500.0,0.00014794,3]
[330669665,1719697934185,-505.28,0.00014794,3]
[330669666,1719697934195,-500.0,0.00014794,3]
[330669667,1719697934204,-1018.92,0.00014794,3]
[330669668,1719697934216,-500.0,0.00014794,3]
[330669669,1719697934225,-1686.75,0.00014794,3]
[330669670,1719697934235,-909.13,0.00014794,3]
[330669671,1719697934244,-500.0,0.00014794,3]
[330669672,1719697934254,-500.0,0.00014794,3]
[330669673,1719697934263,-1313.08,0.00014794,3]
[330669674,1719697934274,-1145.27,0.00014794,3]
[330669675,1719697934284,-1118.48,0.00014794,3]
[330669676,1719697934294,-1391.8,0.00014794,3]
[330669677,1719697934304,-500.0,0.00014794,3]
[330669678,1719697934314,-844.99,0.00014794,3]
[330669679,1719697934324,-871.12,0.00014794,3]
[330669680,1719697934334,-2484.8,0.00014794,3]
[330669681,1719697934343,-5131.41,0.00014794,3]
[330669682,1719697934353,-500.0,0.00014794,3]
[330669683,1719697934363,-1085.2,0.00014794,3]
[330669684,1719697934372,-500.0,0.00014794,3]
[330669685,1719697934384,-500.0,0.00014794,3]
[330669686,1719697934397,-500.0,0.00014794,3]
[330669687,1719697934407,-1427.19,0.00014794,3]
[330669688,1719697934416,-2549.66,0.00014794,3]
[330669689,1719697934427,-500.0,0.00014794,3]
[330669690,1719697934436,-695.57,0.00014794,3]
[330669691,1719697934446,-500.0,0.00014794,3]
[330669692,1719697934455,-1016.52,0.00014794,3]
[330669693,1719697934467,-500.0,0.00014794,3]
[330669694,1719697934477,-500.0,0.00014794,3]
[330669695,1719697934487,-533.37,0.00014794,3]
[330669696,1719697934496,-1893.42,0.00014794,3]
[330669697,1719697934505,-500.0,0.00014794,3]
[330669698,1719697934515,-1984.05,0.00014794,3]
[330669699,1719697934524,-930.48,0.00014794,3]
[330669700,1719697934534,-613.33,0.00014794,3]
[330669701,1719697934543,-561.25,0.00014794,3]
[330669702,1719697934553,-500.0,0.00014794,3]
[330669703,1719697934562,-500.0,0.00014794,3]
[330669704,1719697934572,-2382.38,0.00014794,3]
[330669705,1719697934582,-1247.74,0.00014794,3]